fUST/lending_fUST_20240614
["ID","MTS","AMOUNT","RATE_DAILY","PERIOD"]
[329448162,1718365848699,-503.09622241,0.00017795,2]
[329448164,1718365848726,-570.17,0.00017795,2]
[329448166,1718365848740,-329.99999,0.00017795,2]
[329448169,1718365848769,-512.39113131,0.00017795,2]
[329448171,1718365848781,-500.0,0.00017795,2]
[329448174,1718365848827,-500.0,0.00017795,2]
[329448176,1718365848838,-500.0,0.00017795,2]
[329448177,1718365848849,-500.0,0.00017795,2]
[329448178,1718365848862,-551.33490613,0.00017795,2]
[329448179,1718365848879,-500.0,0.00017795,2]
[329448180,1718365848897,-500.0,0.00017795,2]
[329448181,1718365848910,-500.0,0.00017795,2]
[329448182,1718365848929,-1268.92,0.00017795,2]
[329448183,1718365848940,-631.86,0.00017795,2]
[329448184,1718365848955,-500.0,0.00017795,2]
[329448185,1718365848972,-500.0,0.00017795,2]
[329448188,1718365848987,-510.05702849,0.00017795,2]
[329448189,1718365849008,-503.24302932,0.00017795,2]
[329448191,1718365849029,-506.29453105,0.00017795,2]
[329448193,1718365849045,-299.71,0.00017795,2]
[329448195,1718365849067,-500.0,0.00017795,2]
[329448198,1718365849097,-500.0,0.00017795,2]
[329448200,1718365849121,-500.0,0.00017795,2]
[329448202,1718365849166,-500.0,0.00017795,2]
[329448203,1718365849183,-500.0,0.00017795,2]
[329448205,1718365849200,-503.08401917,0.00017795,2]
[329448206,1718365849218,-2732.8,0.00017795,2]
[329448209,1718365849241,-663.96,0.00017795,2]
[329448211,1718365849259,-500.0,0.00017795,2]
[329448215,1718365849312,-501.88540735,0.00017795,2]
[329448217,1718365849323,-505.51808411,0.00017795,2]
[329448218,1718365849335,-502.73501367,0.00017795,2]
[329448220,1718365849347,-502.75001196,0.00017796,2]
[329448223,1718365849373,-504.68607001,0.00017796,2]
[329448224,1718365849385,-503.1444164,0.00017796,2]
[329448226,1718365849405,-502.91981873,0.00017796,2]
[329448228,1718365849440,-500.0,0.00017796,2]
[329448230,1718365849481,-503.87867465,0.00017796,2]
[329448232,1718365849493,-500.0,0.00017796,2]
[329448233,1718365849506,-500.0,0.00017796,2]
[329448235,1718365849521,-558.71,0.00017796,2]
[329448236,1718365849533,-500.0,0.00017796,2]
[329448238,1718365849557,-502.08760878,0.00017796,2]
[329448240,1718365849597,-502.42198833,0.00017796,2]
[329448241,1718365849618,-512.96616511,0.00017796,2]
[329448244,1718365849657,-504.48916555,0.00017796,2]
[329448246,1718365849690,-219.26218121,0.00017796,2]
[329448248,1718365849730,-502.08344122,0.00017796,2]
[329448250,1718365849761,-503.64058047,0.00017796,2]
[329448252,1718365849783,-504.02172479,0.00017796,2]
[329448256,1718365849819,-507.24880346,0.00017796,2]
[329448258,1718365849887,-452.11016107,0.00017796,2]
[329448317,1718365851087,-802.01,0.00017795,2]
[329448318,1718365851101,-49.28795397,0.00017796,2]
[329448320,1718365851116,-503.48889374,0.00017796,2]
[329448323,1718365851161,-500.0,0.00017796,2]
[329448325,1718365851174,-500.0,0.00017796,2]
[329448326,1718365851195,-500.0,0.00017796,2]
[329448328,1718365851227,-207.41830129,0.00017796,2]
[329448528,1718367041012,-157.919579,0.00016164,2]
[329448530,1718367041029,-403.14980727,0.00017695,2]
[329448532,1718367041046,-223.66,0.00017794,2]
[329448533,1718367041060,-500.0,0.00017794,2]
[329448535,1718367041071,-1236.17,0.00017794,2]
[329448537,1718367041081,-503.24854146,0.00017794,2]
[329448539,1718367041094,-529.23809192,0.00017794,2]
[329448541,1718367041105,-500.0,0.00017794,2]
[329448543,1718367041126,-292.58169871,0.00017794,2]
[329448545,1718367041139,-500.0,0.00017794,2]
[329448547,1718367041156,-500.0,0.00017794,2]
[329448549,1718367041180,-512.81136051,0.00017794,2]
[329448550,1718367041195,-3.8054435,0.00017794,2]
[329448660,1718367047910,-643.7445565,0.00017794,2]
[329448661,1718367047938,-500.0,0.00017794,2]
[329448662,1718367047959,-1216.05,0.00017794,2]
[329448663,1718367047978,-503.74802448,0.00017794,2]
[329448664,1718367048009,-499.47974649,0.00017794,2]
[329448666,1718367048021,-500.31909235,0.00017794,2]
[329448667,1718367048050,-3067.33,0.00017794,2]
[329448668,1718367048064,-500.0,0.00017794,2]
[329448669,1718367048075,-514.08687924,0.00017794,2]
[329448670,1718367048121,-501.6013824,0.00017794,2]
[329448671,1718367048151,-500.0,0.00017794,2]
[329448672,1718367048188,-500.58104828,0.00017794,2]
[329448673,1718367048206,-500.0,0.00017794,2]
[329448674,1718367048220,-500.0,0.00017794,2]
[329448675,1718367048233,-526.29441157,0.00017794,2]
[329448676,1718367048245,-500.0,0.00017794,2]
[329448677,1718367048257,-503.42604476,0.00017794,2]
[329448678,1718367048269,-2618.93,0.00017794,2]
[329448679,1718367048280,-325.55,0.00017794,2]
[329448680,1718367048291,-500.0,0.00017794,2]
[329448681,1718367048304,-500.0,0.00017794,2]
[329448682,1718367048316,-636.3,0.00017794,2]
[329448683,1718367048340,-509.22261972,0.00017794,2]
[329448684,1718367048351,-500.0,0.00017794,2]
[329448686,1718367048365,-500.0,0.00017794,2]
[329448687,1718367048400,-541.43535517,0.00017794,2]
[329448688,1718367048432,-500.0,0.00017794,2]
[329448689,1718367048448,-803.47,0.00017794,2]
[329448690,1718367048460,-343.51580759,0.00017795,2]
[329448691,1718367048480,-164.60607785,0.00017795,2]
[329448692,1718367048494,-500.0,0.00017795,2]
[329448693,1718367048508,-500.0,0.00017795,2]
[329448694,1718367048524,-1037.02808721,0.00017795,2]
[329448695,1718367048574,-500.0,0.00017795,2]
[329448696,1718367048651,-500.0,0.00017795,2]
[329448697,1718367048678,-500.0,0.00017795,2]
[329448698,1718367048697,-500.0,0.00017795,2]
[329448699,1718367048708,-500.0,0.00017795,2]
[329448700,1718367048720,-500.0,0.00017795,2]
[329448701,1718367048743,-158.87,0.00017795,4]
[329448702,1718367048757,-500.0,0.00017795,2]
[329448703,1718367048772,-500.0,0.00017795,2]
[329448704,1718367048797,-500.0,0.00017795,2]
[329448705,1718367048812,-500.0,0.00017795,2]
[329448706,1718367048826,-500.0,0.00017795,2]
[329448707,1718367048846,-156.09956753,0.00017795,2]
[329448708,1718367048862,-502.61684434,0.00017795,2]
[329448709,1718367048903,-500.50416299,0.00017795,2]
[329448710,1718367048968,-306.48490793,0.00017795,2]
[329448711,1718367048982,-523.22405655,0.00017795,2]
[329448712,1718367049003,-500.0,0.00017795,2]
[329448713,1718367049016,-500.0,0.00017795,2]
[329448714,1718367049060,-322.04156391,0.00017795,2]
[329448715,1718367049072,-585.08559426,0.00017795,2]
[329448716,1718367049083,-500.0,0.00017795,2]
[329448717,1718367049094,-500.0,0.00017795,2]
[329448718,1718367049110,-359.67537766,0.00017795,2]
[329448719,1718367049133,-500.0,0.00017795,2]
[329448720,1718367049149,-188.3358669,0.00017795,2]
[329448721,1718367049163,-500.0,0.00017795,2]
[329448722,1718367049177,-500.0,0.00017795,2]
[329448723,1718367049197,-500.0,0.00017795,2]
[329448724,1718367049217,-505.47706429,0.00017795,2]
[329448725,1718367049239,-505.64778159,0.00017795,2]
[329448726,1718367049251,-506.82876757,0.00017795,2]
[329448727,1718367049266,-500.0,0.00017795,2]
[329448728,1718367049282,-508.59828922,0.00017795,2]
[329448729,1718367049309,-503.10795554,0.00017795,2]
[329448730,1718367049321,-500.0,0.00017795,2]
[329448731,1718367049333,-505.36323826,0.00017795,2]
[329448732,1718367049348,-502.91910879,0.00017795,2]
[329448733,1718367049368,-500.60750384,0.00017795,2]
[329448734,1718367049382,-505.38098479,0.00017795,2]
[329448735,1718367049399,-250.0,0.00017795,2]
[329448736,1718367049431,-502.754955,0.00017795,2]
[329448737,1718367049457,-500.0,0.00017795,2]
[329448738,1718367049481,-500.0,0.00017795,2]
[329448739,1718367049494,-505.06561743,0.00017795,2]
[329448740,1718367049506,-509.92066357,0.00017795,2]
[329448741,1718367049522,-501.75175323,0.00017795,2]
[329448742,1718367049534,-504.27066301,0.00017795,2]
[329448743,1718367049545,-502.56423436,0.00017795,2]
[329448744,1718367049557,-502.72131537,0.00017795,2]
[329448745,1718367049594,-504.94452442,0.00017795,2]
[329448746,1718367049609,-506.98221792,0.00017795,2]
[329448747,1718367049623,-500.0,0.00017795,2]
[329448748,1718367049636,-500.0,0.00017795,2]
[329448749,1718367049658,-508.22782174,0.00017795,2]
[329448750,1718367049678,-500.0,0.00017795,2]
[329448751,1718367049701,-504.46319048,0.00017795,2]
[329448752,1718367049727,-500.0,0.00017795,2]
[329448753,1718367049757,-500.0,0.00017795,2]
[329448754,1718367049777,-500.0,0.00017795,2]
[329448755,1718367049794,-500.0,0.00017795,2]
[329448756,1718367049830,-506.03558681,0.00017795,2]
[329448757,1718367049845,-326.52014358,0.00017795,2]
[329448758,1718367049862,-508.1597681,0.00017795,2]
[329448759,1718367049874,-500.0,0.00017795,2]
[329448760,1718367049895,-500.0,0.00017795,2]
[329448761,1718367049918,-507.99841591,0.00017795,2]
[329448762,1718367049947,-580.83,0.00017795,2]
[329448763,1718367049977,-500.0,0.00017795,2]
[329448764,1718367049991,-502.36845919,0.00017795,2]
[329448765,1718367050003,-500.0,0.00017795,2]
[329448766,1718367050018,-462.48555596,0.00017795,2]
[329448767,1718367050037,-500.0,0.00017795,2]
[329448768,1718367050057,-526.82571751,0.00017795,2]
[329448769,1718367050069,-816.36,0.00017795,2]
[329448770,1718367050079,-500.85241133,0.00017795,2]
[329448771,1718367050090,-500.0,0.00017795,2]
[329448772,1718367050101,-500.0,0.00017795,2]
[329448773,1718367050118,-500.0,0.00017795,2]
[329448774,1718367050132,-500.0,0.00017795,2]
[329448775,1718367050143,-386.1969377,0.00017795,2]
[329448776,1718367050158,-500.0,0.00017795,2]
[329448777,1718367050169,-399.18762292,0.00017829,2]
[329448778,1718367050373,-500.0,0.00017794,2]
[329448779,1718367050404,-500.0,0.00017795,2]
[329448780,1718367050417,-4426.36929353,0.00017829,2]
[329448781,1718367050447,-11378.4348429,0.00017829,2]
[329448782,1718367050473,-5602.44627288,0.00017829,2]
[329448795,1718367055080,-6807.49067405,0.00017829,2]
[329448796,1718367192810,150.0,0.000225,30]
[329448880,1718368235784,-157.919579,0.00016164,2]
[329448881,1718368235797,-150.0,0.00017304,2]
[329448882,1718368235821,-157.0,0.00017319,2]
[329448883,1718368235846,-157.0,0.00017544,2]
[329448884,1718368235867,-157.0,0.00017768,2]
[329448885,1718368235893,-300.0,0.00017793,2]
[329448886,1718368235904,-500.0,0.00017794,2]
[329448887,1718368235926,-500.0,0.00017794,2]
[329448888,1718368235938,-500.0,0.00017794,2]
[329448889,1718368235950,-500.0,0.00017794,2]
[329448890,1718368235968,-500.0,0.00017794,2]
[329448891,1718368235982,-500.0,0.00017794,2]
[329448892,1718368235995,-296.29858874,0.00017794,2]
[329448893,1718368236011,-203.70141126,0.00017794,2]
[329448894,1718368236030,-500.0,0.00017794,2]
[329448895,1718368236041,-500.0,0.00017794,2]
[329448896,1718368236055,-500.0,0.00017794,2]
[329448897,1718368236067,-505.40871016,0.00017794,2]
[329448898,1718368236082,-739.47,0.00017794,2]
[329448899,1718368236100,-310.85025111,0.00017794,2]
[329448900,1718368236122,-500.0,0.00017794,2]
[329448901,1718368236134,-306.0,0.000178,2]
[329448902,1718368236147,-6529.52085443,0.00017829,2]
[329448903,1718368236163,-159.69273304,0.00017863,2]
[329448904,1718368236178,-507.38220807,0.00017863,2]
[329448905,1718368236190,-159.692733,0.00017866,2]
[329448906,1718368236218,-159.692733,0.00017869,2]
[329448907,1718368236236,-159.692733,0.00017871,2]
[329448908,1718368236250,-159.692733,0.00017874,2]
[329448909,1718368236270,-1042.0,0.000179,2]
[329448910,1718368236300,-821.6,0.00017962,2]
[329448911,1718368236323,-500.0,0.00017962,2]
[329448912,1718368236340,-500.0,0.00017962,2]
[329448913,1718368236354,-500.0,0.00017962,2]
[329448914,1718368236369,-500.0,0.00017962,2]
[329448915,1718368236393,-500.0,0.00017962,2]
[329448916,1718368236422,-500.0,0.00017962,2]
[329448917,1718368236449,-3166.29,0.00017962,2]
[329448918,1718368236464,-248.13,0.00017962,2]
[329448919,1718368236477,-261.92,0.00017962,2]
[329448920,1718368236493,-500.0,0.00017962,2]
[329448921,1718368236508,-500.0,0.00017962,2]
[329448922,1718368236523,-310.05891122,0.00017963,2]
[329448923,1718368236556,-302.37227345,0.00017963,2]
[329448924,1718368236569,-500.0,0.00017963,2]
[329448925,1718368236583,-519.95,0.00017963,2]
[329448926,1718368236596,-500.0,0.00017963,2]
[329448927,1718368236609,-500.0,0.00017963,2]
[329448928,1718368236622,-810.27,0.00017963,2]
[329448929,1718368236638,-625.14727198,0.00017963,2]
[329448930,1718368236651,-860.41,0.00017963,2]
[329448931,1718368236670,-941.67538159,0.00017963,2]
[329449083,1718368250405,-808.2,0.00017962,2]
[329449084,1718368250419,-540.18,0.00017962,2]
[329449085,1718368250434,-242.98461841,0.00017963,2]
[329449086,1718368250446,-500.0,0.00017963,2]
[329449087,1718368250457,-500.0,0.00017963,2]
[329449088,1718368250498,-500.0,0.00017963,2]
[329449089,1718368250509,-500.0,0.00017963,2]
[329449090,1718368250521,-500.0,0.00017963,4]
[329449091,1718368250537,-500.0,0.00017963,2]
[329449092,1718368250551,-500.0,0.00017963,2]
[329449093,1718368250563,-387.70238876,0.00017963,2]
[329449094,1718368250580,-500.0,0.00017963,2]
[329449095,1718368250614,-512.40716329,0.00017963,2]
[329449096,1718368250628,-500.0,0.00017963,2]
[329449097,1718368250668,-500.0,0.00017963,2]
[329449098,1718368250686,-1236.94,0.00017963,2]
[329449099,1718368250699,-297.40828062,0.00017963,2]
[329449100,1718368250714,-500.0,0.00017963,2]
[329449101,1718368250728,-500.0,0.00017963,2]
[329449102,1718368250750,-500.0,0.00017963,2]
[329449103,1718368250785,-281.72241568,0.00017963,2]
[329449104,1718368250818,-512.14078944,0.00017963,2]
[329449105,1718368250837,-500.0,0.00017963,2]
[329449106,1718368250849,-500.0,0.00017963,2]
[329449107,1718368250876,-581.43931544,0.00017963,2]
[329449108,1718368250958,-500.0,0.00017963,2]
[329449109,1718368250971,-500.0,0.00017963,2]
[329449110,1718368250998,-254.67164555,0.00017963,2]
[329449111,1718368251015,-502.3954791,0.00017963,2]
[329449112,1718368251045,-2530.64,0.00017963,2]
[329449113,1718368251080,-250.0,0.00017963,2]
[329449114,1718368251095,-504.60672431,0.00017963,2]
[329449115,1718368251120,-500.0,0.00017963,2]
[329449116,1718368251133,-3166.29,0.00017964,2]
[329449117,1718368251148,-3166.29,0.00017964,2]
[329449118,1718368251160,-220.54318092,0.00017964,2]
[329449119,1718368251178,-2945.74681908,0.00017964,2]
[329449120,1718368251191,-500.0,0.00017964,2]
[329449121,1718368251205,-500.0,0.00017964,2]
[329449122,1718368251221,-500.0,0.00017964,2]
[329449123,1718368251234,-500.0,0.00017964,2]
[329449124,1718368251258,-500.0,0.00017964,2]
[329449125,1718368251280,-500.0,0.00017964,2]
[329449126,1718368251316,-151.0,0.00017965,2]
[329449127,1718368251327,-214.545008,0.00017965,2]
[329449128,1718368251357,-155.13121493,0.00017971,2]
[329449129,1718368251373,-338.22193733,0.00017971,2]
[329449130,1718368251387,-262.16993722,0.00017971,2]
[329449131,1718368251400,-224.91008933,0.00017971,2]
[329449132,1718368251420,-2475.34668873,0.00017973,2]
[329449133,1718368251434,-4393.24103201,0.00017974,2]
[329449137,1718368271526,169.79,0.00010959,2]
[329449138,1718368292417,848.97,0.00010959,2]
[329449139,1718368333869,155.0,9.999e-05,2]
[329449141,1718368489130,775.12551274,9.999e-05,2]
[329449146,1718368534932,1682.14201396,9.999e-05,2]
[329449156,1718368725563,155.0,0.00012,2]
[329449157,1718368814641,411.82302488,9.999e-05,2]
[329449158,1718368856932,660.38617191,9.999e-05,2]
[329449163,1718369055630,1518.91993593,9.999e-05,2]
[329449178,1718369162236,530.57585468,9.999e-05,2]
[329449179,1718369167200,155.0,0.00012,2]
[329449186,1718369413523,10000.0,0.000265,120]
[329449189,1718369432001,5000.0,0.000265,120]
[329449224,1718369434957,-155.0,0.00015832,2]
[329449226,1718369434969,-918.9923057,0.00015833,2]
[329449227,1718369434982,-778.25820441,0.00016062,2]
[329449229,1718369434992,-272.63741379,0.00016062,2]
[329449231,1718369435004,-411.59502274,0.00016062,2]
[329449232,1718369435030,-660.03448969,0.00016062,2]
[329449233,1718369435040,-927.77008751,0.00016062,2]
[329449234,1718369435051,-1518.15611145,0.00016062,2]
[329449235,1718369435073,-530.29826022,0.00016062,2]
[329449236,1718369435086,-155.01240099,0.00016063,2]
[329449237,1718369435099,-199.23986249,0.00016063,2]
[329449238,1718369435110,-4416.36126305,0.00016063,2]
[329449239,1718369435123,-443.95943207,0.00016064,2]
[329449240,1718369435137,-20525.13360028,0.00016064,2]
[329449242,1718369435157,-6630.40237077,0.00016064,2]
[329449244,1718369435171,-157.919579,0.00016164,2]
[329449245,1718369435184,-443.959432,0.00017545,2]
[329449248,1718369435196,-2414.14844683,0.000177,2]
[329449250,1718369435209,-151.0,0.00017781,2]
[329449252,1718369435234,-774.53,0.00017799,2]
[329449255,1718369435252,-201.85704448,0.00017799,2]
[329449257,1718369435263,-500.0,0.00017799,2]
[329449259,1718369435276,-278.17,0.00017799,2]
[329449261,1718369435310,-2536.01312692,0.00017799,2]
[329449289,1718369441096,-742.26,0.00017699,2]
[329449290,1718369441108,-102.55687308,0.00017799,2]
[329449291,1718369441120,-1720.62437971,0.00017799,2]
[329449357,1718369815488,523.477336,9.999e-05,2]
[329449359,1718370042630,1682.14201396,9.999e-05,2]
[329449360,1718370299021,440714.39867766,0.00023,30]
[329449361,1718370402136,-157.919579,0.00016164,2]
[329449362,1718370402171,-1682.14201396,0.0001652,2]
[329449363,1718370402234,-337.5357906,0.00016521,2]
[329449364,1718370402277,-163.91769632,0.00016813,2]
[329449365,1718370402344,-6847.66723181,0.00016909,2]
[329449411,1718370635804,-500.0,0.00017699,2]
[329449413,1718370635821,-81.78962672,0.00017699,2]
[329449560,1718370648405,-418.21037328,0.00017699,2]
[329449562,1718370648434,-500.0,0.00017699,2]
[329449564,1718370648454,-81.43433301,0.00017699,2]
[329449577,1718370648667,-418.56566699,0.00017699,2]
[329449578,1718370648678,-4297.03098278,0.00017796,2]
[329449580,1718370648696,-1826.12686669,0.00017796,2]
[329449583,1718370648712,-300.64273011,0.00017797,2]
[329449585,1718370648726,-808.00968821,0.00017797,2]
[329449586,1718370648744,-500.0,0.00017797,2]
[329449589,1718370648756,-235.8649398,0.00017798,2]
[329449590,1718370648767,-489.4554539,0.00017798,2]
[329449592,1718370648778,-10546.01902729,0.00017798,2]
[329449593,1718370648802,-28740.92115815,0.00017798,2]
[329449687,1718370655887,-500.0,0.00017797,2]
[329449688,1718370655900,-12134.84620331,0.00017798,2]
[329449689,1718370655917,-968.13736244,0.00017798,2]
[329449705,1718370848147,154.95351395,0.00015,2]
[329449711,1718370927817,371.24,0.00010959,2]
[329449728,1718371782156,-157.919579,0.00016164,2]
[329449729,1718371782201,-352.73593245,0.00016499,2]
[329449730,1718371782269,-510.65551145,0.00016499,2]
[329449731,1718371782319,-510.65551145,0.00016499,2]
[329449732,1718371782364,-510.65551145,0.00016499,2]
[329449733,1718371782415,-510.65551145,0.00016499,2]
[329449734,1718371782496,-510.65551145,0.00016499,2]
[329449735,1718371782560,-93.9865103,0.00016499,2]
[329449736,1718371782607,-74.98251488,0.00016601,2]
[329449737,1718371782687,-104.45402912,0.00016601,2]
[329449738,1718371782729,-406.20148233,0.00017,5]
[329449739,1718371782807,-510.65551145,0.00017,5]
[329449740,1718371782853,-83.14300622,0.00017,5]
[329449741,1718371782898,-427.51250523,0.00017357,2]
[329449742,1718371782998,-510.65551145,0.00017357,2]
[329449743,1718371783085,-510.65551145,0.00017357,2]
[329449744,1718371783129,-510.65551145,0.00017357,2]
[329449745,1718371783177,-510.65551145,0.00017357,2]
[329449747,1718371807021,-590.8691938,0.00017357,2]
[329449837,1718371834998,-616.93215406,0.00017357,2]
[329449840,1718371835038,-887.74,0.00017357,2]
[329449932,1718371840627,-1682.45710303,0.00017357,2]
[329449935,1718371840678,-277.5685,0.00017357,2]
[329449947,1718371840932,-1169.62442848,0.00017357,2]
[329450170,1718371846714,-1262.81035036,0.00017357,2]
[329450173,1718371846726,-255.7,0.00017357,2]
[329450175,1718371846743,-255.7,0.00017578,2]
[329450178,1718371846764,-151.0,0.00017578,2]
[329450180,1718371846816,-332.969574,0.00017697,2]
[329450182,1718371846828,-306.0,0.000177,2]
[329450184,1718371846856,-292.5693121,0.00017782,2]
[329450185,1718371846871,-170.07524595,0.00017794,3]
[329450188,1718371846884,-155.69097917,0.00017796,2]
[329450190,1718371846898,-155.20601274,0.00017796,2]
[329450191,1718371846910,-500.0,0.00017796,2]
[329450194,1718371846957,-500.0,0.00017796,2]
[329450195,1718371846979,-500.0,0.00017796,2]
[329450196,1718371846991,-2477.77,0.00017796,2]
[329450198,1718371847006,-500.0,0.00017796,2]
[329450200,1718371847019,-500.0,0.00017796,2]
[329450202,1718371847034,-507.45281598,0.00017796,2]
[329450205,1718371847080,-500.0,0.00017796,2]
[329450208,1718371847097,-711.33,0.00017796,2]
[329450211,1718371847113,-500.0,0.00017796,2]
[329450215,1718371847151,-500.0,0.00017796,2]
[329450217,1718371847189,-1485.04,0.00017796,2]
[329450218,1718371847201,-500.0,0.00017797,2]
[329450220,1718371847217,-500.0,0.00017797,2]
[329450222,1718371847233,-500.0,0.00017797,2]
[329450224,1718371847250,-500.0,0.00017797,2]
[329450226,1718371847284,-502.23868238,0.00017797,2]
[329450228,1718371847298,-500.0,0.00017797,2]
[329450230,1718371847314,-500.86700478,0.00017797,2]
[329450232,1718371847327,-236.19561635,0.00017797,2]
[329450233,1718371847343,-500.0,0.00017797,2]
[329450235,1718371847365,-500.0,0.00017797,2]
[329450237,1718371847379,-500.0,0.00017797,2]
[329450239,1718371847392,-357.44940488,0.00017797,2]
[329450241,1718371847412,-500.0,0.00017797,2]
[329450243,1718371847432,-500.0,0.00017797,2]
[329450245,1718371847444,-500.0,0.00017797,2]
[329450247,1718371847456,-504.59196127,0.00017797,2]
[329450250,1718371847488,-500.0,0.00017797,2]
[329450252,1718371847504,-500.0,0.00017797,2]
[329450254,1718371847517,-1191.88,0.00017797,2]
[329450256,1718371847539,-500.0,0.00017797,2]
[329450260,1718371847578,-767.26,0.00017797,2]
[329450262,1718371847597,-581.33,0.00017797,2]
[329450264,1718371847621,-500.0,0.00017797,2]
[329450266,1718371847635,-504.07276594,0.00017797,2]
[329450268,1718371847666,-500.0,0.00017797,2]
[329450270,1718371847690,-1295.64,0.00017797,2]
[329450271,1718371847702,-502.17400226,0.00017797,2]
[329450273,1718371847722,-500.0,0.00017797,2]
[329450276,1718371847737,-500.0,0.00017797,2]
[329450277,1718371847749,-503.04357653,0.00017797,2]
[329450279,1718371847779,-500.0,0.00017797,2]
[329450282,1718371847797,-1239.18,0.00017797,2]
[329450284,1718371847810,-503.25058344,0.00017797,2]
[329450286,1718371847825,-2477.77,0.00017797,2]
[329450288,1718371847842,-2477.77,0.00017797,2]
[329450290,1718371847893,-500.0,0.00017797,2]
[329450292,1718371847934,-500.0,0.00017797,2]
[329450295,1718371847958,-500.0,0.00017797,2]
[329450297,1718371847982,-500.0,0.00017797,2]
[329450299,1718371848012,-500.0,0.00017797,2]
[329450300,1718371848025,-500.0,0.00017797,2]
[329450302,1718371848040,-500.0,0.00017797,2]
[329450304,1718371848058,-500.0,0.00017797,2]
[329450307,1718371848090,-500.0,0.00017797,2]
[329450309,1718371848117,-250.0,0.00017797,2]
[329450311,1718371848151,-502.41653638,0.00017797,2]
[329450312,1718371848183,-2296.0,0.00017797,2]
[329450315,1718371848221,-500.0,0.00017797,2]
[329450317,1718371848236,-500.0,0.00017797,2]
[329450319,1718371848248,-500.0,0.00017797,2]
[329450322,1718371848272,-500.0,0.00017797,2]
[329450323,1718371848297,-500.0,0.00017797,2]
[329450326,1718371848314,-2363.7120553,0.00017798,13]
[329450328,1718371848332,-41461.64488392,0.00017798,2]
[329450331,1718371848390,-6807.49067405,0.00017798,2]
[329450333,1718371848413,-6012.51357075,0.00017798,2]
[329450335,1718371848468,-4275.0,0.00017798,2]
[329450337,1718371848495,-43619.52505421,0.00017798,2]
[329450338,1718371848509,-151.0,0.00017798,2]
[329450340,1718371848546,-151.0,0.00017798,2]
[329450342,1718371848562,-151.0,0.00017798,2]
[329450344,1718371848592,-151.0,0.00017798,2]
[329450346,1718371848623,-2477.77,0.00017798,2]
[329450348,1718371848641,-500.0,0.00017798,2]
[329450350,1718371848673,-151.0,0.00017798,2]
[329450352,1718371848686,-500.0,0.00017799,2]
[329450354,1718371848698,-505.30840478,0.00017799,2]
[329450356,1718371848713,-503.41070682,0.00017799,2]
[329450358,1718371848727,-502.08811037,0.00017799,2]
[329450360,1718371848740,-504.5,0.00017799,2]
[329450362,1718371848758,-504.64315454,0.00017799,2]
[329450364,1718371848769,-500.0,0.00017799,2]
[329450366,1718371848781,-501.93232064,0.00017799,2]
[329450368,1718371848794,-522.65697335,0.00017799,2]
[329450369,1718371848806,-500.0,0.00017799,2]
[329450371,1718371848829,-151.0,0.00017799,2]
[329450372,1718371848842,-173.252776,0.00017799,2]
[329450374,1718371848877,-255.7,0.00017799,2]
[329450376,1718371848890,-151.0,0.00017799,2]
[329450378,1718371848906,-155.09630631,0.00017898,2]
[329450380,1718371848921,-195.16599108,0.00017898,2]
[329450383,1718371848949,-159.10924468,0.00017898,2]
[329450385,1718371848970,-151.0,0.00017898,2]
[329450387,1718371848986,-2477.77,0.00017899,2]
[329450389,1718371849004,-2477.77,0.00017899,2]
[329450392,1718371849018,-500.0,0.00017899,2]
[329450394,1718371849030,-500.0,0.00017899,2]
[329450396,1718371849044,-500.0,0.00017899,2]